bitfinex-derivatives/quotes_ETHF0:USTF0_20241027
["timestamp","ask_amount","ask_price","bid_price","bid_amount"]
[1730005343677,1.30553925,2480.5,2480.4,1.8662616]
[1730005343876,1.30553925,2480.5,2480.4,5.0740616]
[1730005344480,1.30553925,2480.5,2480.4,1.8662616]
[1730005344778,1.30553925,2480.5,2480.4,5.0740616]
[1730005345178,1.30553925,2480.5,2480.4,1.8662616]
[1730005345780,1.30553925,2480.5,2480.4,5.0740616]
[1730005347774,1.30553925,2480.5,2480.4,4.01785]
[1730005347976,1.30553925,2480.5,2480.4,5.0740616]
[1730005349483,1.30553925,2480.5,2480.4,1.8662616]
[1730005349878,1.30553925,2480.5,2480.4,5.0740616]
[1730005351183,1.30553925,2480.5,2480.4,1.8662616]
[1730005351786,1.30553925,2480.5,2480.4,5.0740616]
[1730005353190,1.30553925,2480.5,2480.4,1.8662616]
[1730005353384,1.30553925,2480.5,2480.4,5.0740616]
[1730005354987,1.30553925,2480.5,2480.4,1.8662616]
[1730005355187,1.30553925,2480.5,2480.4,5.0740616]
[1730005355589,1.30553925,2480.5,2480.4,1.8662616]
[1730005356589,1.30553925,2480.5,2480.4,3.43030981]
[1730005356782,1.30553925,2480.5,2480.4,5.0740616]
[1730005357289,1.30553925,2480.5,2480.4,6.6381423]
[1730005357486,1.30553925,2480.5,2480.4,6.63815009]
[1730005357989,1.30553925,2480.5,2480.4,3.43035009]
[1730005358188,1.30553925,2480.5,2480.4,6.63815009]
[1730005359580,1.30553925,2480.5,2480.4,3.43035009]
[1730005360397,1.30553925,2480.5,2480.4,6.63815009]
[1730005360892,1.30553925,2480.5,2480.4,3.43035009]
[1730005361482,1.30553925,2480.5,2480.4,6.63815009]
[1730005361683,17.71828386,2480.6,2480.5,0.40364]
[1730005361991,19.02382311,2480.6,2480.5,0.40364]
[1730005362191,19.42745311,2480.6,2480.5,0.81574]
[1730005362388,19.02382311,2480.6,2480.5,0.81574]
[1730005362593,19.02382311,2480.6,2480.5,1.87564085]
[1730005363599,19.02382311,2480.6,2480.5,0.81574]
[1730005364098,19.42745311,2480.6,2480.5,0.81574]
[1730005364297,19.02382311,2480.6,2480.5,0.81574]
[1730005364490,19.42745311,2480.6,2480.5,0.81574]
[1730005366095,19.02382311,2480.6,2480.5,0.81574]
[1730005366690,19.42745311,2480.6,2480.5,0.81574]
[1730005367801,19.02382311,2480.6,2480.5,0.81574]
[1730005368693,19.42745311,2480.6,2480.5,0.81574]
[1730005369497,19.02382311,2480.6,2480.5,0.81574]
[1730005370003,19.02382311,2480.6,2480.5,1.87564085]
[1730005373804,19.42745311,2480.6,2480.5,1.87564085]
[1730005374601,3.40953925,2480.6,2480.5,1.87564085]
[1730005379610,3.40953925,2480.6,2480.5,0.81574]
[1730005379817,3.81316925,2480.6,2480.5,0.4121]
[1730005380118,3.40953925,2480.6,2480.5,0.40364]
[1730005380518,3.81316925,2480.6,2480.5,0.40364]
[1730005382524,0.40364,2480.5,2480.4,4.26770085]
[1730005382817,1.70917925,2480.5,2480.4,4.26770085]
[1730005383008,1.70917925,2480.5,2480.4,3.2078]
[1730005383516,1.30553925,2480.5,2480.4,3.2078]
[1730005383719,1.70917925,2480.5,2480.4,3.2078]
[1730005385216,1.30553925,2480.5,2480.4,3.61146]
[1730005385615,1.70917925,2480.5,2480.4,4.68050085]
[1730005385814,1.70917925,2480.5,2480.4,6.6545418]
[1730005386424,1.70917925,2480.5,2480.4,5.08416085]
[1730005386624,1.70917925,2480.5,2480.4,4.26770085]
[1730005386826,1.30553925,2480.5,2480.4,4.67136085]
[1730005389727,1.30553925,2480.5,2480.4,1.46356085]
[1730005389930,1.30553925,2480.5,2480.4,4.67136085]
[1730005390322,1.30553925,2480.5,2480.4,1.46356085]
[1730005390523,1.30553925,2480.5,2480.4,4.67136085]
[1730005391117,1.30553925,2480.5,2480.4,1.46356085]
[1730005391317,1.30553925,2480.5,2480.4,4.67136085]
[1730005391630,1.30553925,2480.5,2480.4,1.46356085]
[1730005391830,1.30553925,2480.5,2480.4,4.67136085]
[1730005392428,1.30553925,2480.5,2480.4,1.46356085]
[1730005392729,1.70917925,2480.5,2480.4,4.67136085]
[1730005392933,1.30553925,2480.5,2480.4,4.67136085]
[1730005393826,1.30553925,2480.5,2480.4,3.61146]
[1730005394129,1.30553925,2480.5,2480.4,0.40366]
[1730005394524,1.30553925,2480.5,2480.4,3.61146]
[1730005395730,1.30553925,2480.5,2480.4,4.05076]
[1730005396331,1.30553925,2480.5,2480.4,0.84296]
[1730005396532,1.30553925,2480.5,2480.4,4.05076]
[1730005398430,1.30553925,2480.5,2480.4,0.84296]
[1730005399326,1.30553925,2480.5,2480.4,4.05076]
[1730005399624,2.104,2480.6,2480.4,3.6471]
[1730005399826,2.104,2480.6,2480.5,0.40364]
[1730005400130,3.40953925,2480.6,2480.5,0.40364]
[1730005400330,7.84436925,2480.6,2480.5,0.40364]
[1730005401133,3.81316925,2480.6,2480.5,0.40364]
[1730005401435,7.84436925,2480.6,2480.5,0.40364]
[1730005403024,7.44073925,2480.6,2480.5,0.40364]
[1730005403424,7.84436925,2480.6,2480.5,0.40364]
[1730005403632,3.81316925,2480.6,2480.5,0.40364]
[1730005403832,7.84436925,2480.6,2480.5,0.40364]
[1730005405341,7.44073925,2480.6,2480.5,0.40364]
[1730005406027,3.40953925,2480.6,2480.5,0.40364]
[1730005407454,7.44073925,2480.6,2480.5,0.40364]
[1730005407659,3.40953925,2480.6,2480.5,0.40364]
[1730005411247,0.819,2480.6,2480.5,0.40364]
[1730005411454,0.9870902,2481.5,2480.5,8.49686281]
[1730005411645,2.29262945,2481.5,2481.4,8.88177684]
[1730005411845,0.9870902,2481.5,2481.4,4.86880797]
[1730005412045,1.30553925,2481.5,2481.4,9.78130797]
[1730005412246,1.30553925,2481.5,2481.4,8.87926872]
[1730005412446,1.30553925,2481.5,2481.4,5.7195]
[1730005413145,0.819,2482.0,2481.8,0.40342]
[1730005413338,1.72453925,2481.9,2481.8,0.40342]
[1730005414548,1.72453925,2481.9,2481.4,1.2864]
[1730005414745,1.72453925,2481.9,2481.3,3.2078]
[1730005414746,1.30553925,2481.5,2481.3,3.2078]
[1730005415024,2.12453925,2482.0,2481.3,3.2078]
[1730005415025,1.72043925,2481.4,2481.3,3.61131]
[1730005416546,1.72043925,2481.4,2481.3,7.64171]
[1730005416958,1.72043925,2481.4,2481.3,3.61131]
[1730005422960,1.72043925,2481.4,2481.3,0.40351]
[1730005423162,1.72043925,2481.4,2481.3,3.61131]
[1730005423964,1.72043925,2481.4,2481.3,0.40351]
[1730005424356,1.72043925,2481.4,2481.3,3.61131]
[1730005424557,1.72043925,2481.4,2481.3,0.40351]
[1730005425655,1.72043925,2481.4,2481.3,3.61131]
[1730005426056,1.72043925,2481.4,2481.3,0.40351]
[1730005426266,1.72043925,2481.4,2481.3,3.61131]
[1730005427967,1.72043925,2481.4,2481.3,0.40351]
[1730005428259,1.72043925,2481.4,2481.3,3.61131]
[1730005428858,1.72043925,2481.4,2481.3,0.40351]
[1730005429363,1.72043925,2481.4,2481.3,3.61131]
[1730005429961,1.72043925,2481.4,2481.3,0.40351]
[1730005430566,1.72043925,2481.4,2481.3,3.61131]
[1730005431565,1.72043925,2481.4,2481.3,0.40351]
[1730005432360,1.72043925,2481.4,2481.3,3.61131]
[1730005433666,1.72043925,2481.4,2481.3,0.40351]
[1730005434170,1.72043925,2481.4,2481.3,3.61131]
[1730005434171,0.4149,2481.4,2481.3,3.61131]
[1730005436067,0.4149,2481.4,2481.3,0.40351]
[1730005436267,0.4149,2481.4,2481.3,3.61131]
[1730005437266,0.4149,2481.4,2481.3,0.40351]
[1730005437968,1.72043925,2481.4,2481.3,3.61131]
[1730005439970,1.72043925,2481.4,2481.3,0.40351]
[1730005440761,1.72043925,2481.4,2481.3,3.61131]
[1730005440970,0.4149,2481.4,2481.3,3.61131]
[1730005441393,0.4149,2481.4,2481.3,0.40351]
[1730005441672,0.4149,2481.4,2481.3,3.61131]
[1730005442692,0.4149,2481.4,2481.3,0.40351]
[1730005442970,0.4149,2481.4,2481.3,3.61131]
[1730005444674,1.72043925,2481.4,2481.3,3.61131]
[1730005446077,1.72043925,2481.4,2481.3,0.40351]
[1730005446275,1.72043925,2481.4,2481.3,3.61131]
[1730005447173,1.72043925,2481.4,2481.3,0.40351]
[1730005447377,1.72043925,2481.4,2481.3,3.61131]
[1730005448098,1.72043925,2481.4,2481.3,0.40351]
[1730005448978,1.72043925,2481.4,2481.3,3.61131]
[1730005451381,0.4149,2481.4,2481.3,3.61131]
[1730005453077,3.2078,2482.0,2481.9,0.40342]
[1730005453278,5.33133925,2482.0,2481.9,0.40342]
[1730005453785,4.51333925,2482.0,2481.9,0.40342]
[1730005453985,5.33133925,2482.0,2481.9,0.40342]
[1730005454381,5.78003925,2482.0,2481.9,0.40342]
[1730005454576,1.75423925,2482.0,2481.9,0.40342]
[1730005454932,2.57223925,2482.0,2481.9,0.40342]
[1730005458780,3.8777785,2482.0,2481.9,0.40342]
[1730005459891,2.57223925,2482.0,2481.9,0.40342]
[1730005465085,2.97563925,2482.0,2481.8,0.40342]
[1730005465286,2.97563925,2482.0,2481.9,0.40342]
[1730005467284,2.97563925,2482.0,2481.8,0.40342]
[1730005467690,1.30553925,2481.9,2481.8,0.40342]
[1730005471796,1.70895925,2481.9,2481.8,0.40342]
[1730005472698,1.30553925,2481.9,2481.8,0.40342]
[1730005484300,1.70895925,2481.9,2481.8,0.40342]
[1730005485503,1.30553925,2481.9,2481.8,0.40342]
[1730005488000,0.4487,2482.0,2481.7,0.4445]
[1730005488309,1.2667,2482.0,2481.9,0.40342]
[1730005489701,0.4487,2482.0,2481.9,0.40342]
[1730005489905,0.443,2482.1,2482.0,0.4034]
[1730005490308,0.443,2482.1,2482.0,0.8455]
[1730005492016,1.30553925,2482.2,2482.1,0.40338]
[1730005492311,0.4121,2482.4,2482.3,0.40335]
[1730005492508,1.71763925,2482.4,2482.3,0.40335]
[1730005495104,1.71763925,2482.4,2482.3,0.82965]
[1730005497113,1.71763925,2482.4,2482.3,0.40335]
[1730005500517,1.71763925,2482.4,2482.3,1.70888925]
[1730005500518,0.4121,2482.4,2482.3,1.70888925]
[1730005500719,0.4121,2482.4,2482.3,2.14068925]
[1730005503916,0.4121,2482.4,2482.3,0.83515]
[1730005504318,0.4121,2482.4,2482.3,0.40335]
[1730005512026,0.4121,2482.4,2482.3,1.70888925]
[1730005518937,0.4229,2482.5,2482.4,0.40333]
[1730005519133,13.17974638,2482.6,2482.4,1.30553925]
[1730005519340,13.17974638,2482.6,2482.5,2.11705925]
[1730005520635,1.2285,2482.7,2482.5,2.11705925]
[1730005520636,0.818,2482.7,2482.5,1.71373925]
[1730005520838,0.818,2482.7,2482.6,0.4033]
[1730005523149,0.818,2482.7,2482.6,1.70883925]
[1730005523444,2.12353925,2482.7,2482.6,0.4033]
[1730005529855,0.818,2482.7,2482.6,0.4033]
[1730005532248,0.818,2482.7,2482.6,3.6111]
[1730005533647,0.4293,2482.8,2482.6,3.2078]
[1730005533849,0.4293,2482.8,2482.7,0.40329]
[1730005534150,0.4293,2482.8,2482.7,0.82609]
[1730005534549,0.4293,2482.8,2482.7,0.40329]
[1730005539158,1.73483925,2482.8,2482.7,0.40329]
[1730005547358,2.13810925,2482.8,2482.7,0.40329]
[1730005547758,1.73483925,2482.8,2482.7,0.40329]
[1730005554467,1.73483925,2482.8,2482.6,0.40329]
[1730005554468,2.13811925,2482.8,2482.6,0.40329]
[1730005557054,2.13811925,2482.8,2482.7,0.40329]
[1730005557267,1.73483925,2482.8,2482.7,0.40329]
[1730005558466,2.55283925,2482.8,2482.7,0.40329]
[1730005559271,2.95611925,2482.8,2482.5,3.2078]
[1730005559462,1.30553925,2482.6,2482.5,3.61112]
[1730005559666,1.30553925,2482.6,2482.5,0.40332]
[1730005559866,1.30553925,2482.6,2482.5,3.61112]
[1730005561966,1.30553925,2482.6,2482.5,0.40332]
[1730005563062,1.30553925,2482.6,2482.5,3.61112]
[1730005567263,1.30553925,2482.6,2482.5,6.76987362]
[1730005567464,1.30553925,2482.6,2482.5,5.20107386]
[1730005567964,1.30553925,2482.6,2482.5,6.76991975]
[1730005569172,1.30553925,2482.6,2482.5,3.56211975]
[1730005569862,1.30553925,2482.6,2482.5,6.76991975]
[1730005570164,1.30553925,2482.6,2482.5,6.77004648]
[1730005573442,1.2473,2482.8,2482.7,0.40329]
[1730005573678,2.55283925,2482.8,2482.7,1.46212435]
[1730005574172,2.55283925,2482.8,2482.7,0.40329]
[1730005582384,2.55283925,2482.8,2482.7,1.46212435]
[1730005582788,2.55283925,2482.8,2482.7,0.40329]
[1730005583885,2.55283925,2482.8,2482.7,1.46212435]
[1730005584077,2.55283925,2482.8,2482.7,0.40329]
[1730005609689,2.95610925,2482.8,2482.6,4.66992435]
[1730005609895,1.30553925,2482.7,2482.6,4.66992435]
[1730005611299,1.30553925,2482.7,2482.6,0.40329]
[1730005611504,1.30553925,2482.7,2482.6,3.61109]
[1730005614099,1.30553925,2482.7,2482.6,0.40329]
[1730005614902,1.30553925,2482.7,2482.6,3.61109]
[1730005615718,1.30553925,2482.7,2482.6,0.40329]
[1730005616803,1.30553925,2482.7,2482.6,3.61109]
[1730005619009,1.30553925,2482.7,2482.6,0.40329]
[1730005619409,1.30553925,2482.7,2482.6,4.66992435]
[1730005619910,1.30553925,2482.7,2482.6,1.46212435]
[1730005620511,1.30553925,2482.7,2482.6,4.66992435]
[1730005620719,1.70882925,2482.7,2482.6,3.2078]
[1730005621310,1.30553925,2482.7,2482.6,3.6111]
[1730005623016,1.30553925,2482.7,2482.6,0.4033]
[1730005624816,1.70882925,2482.7,2482.6,0.4033]
[1730005625118,1.30553925,2482.7,2482.6,0.4033]
[1730005627410,1.70882925,2482.7,2482.5,3.61111]
[1730005627604,2.14453925,2482.6,2482.5,3.61111]
[1730005628603,2.14453925,2482.6,2482.5,0.40331]
[1730005628806,2.14453925,2482.6,2482.5,3.61111]
[1730005628807,2.96253925,2482.6,2482.5,3.61111]
[1730005630913,2.96253925,2482.6,2482.5,0.40331]
[1730005631312,2.96253925,2482.6,2482.5,3.61111]
[1730005634015,2.96253925,2482.6,2482.5,0.40331]
[1730005634407,2.96253925,2482.6,2482.5,1.46214435]
[1730005635144,2.96253925,2482.6,2482.5,3.61111]
[1730005638220,2.96253925,2482.6,2482.5,0.40331]
[1730005638529,2.96253925,2482.6,2482.5,3.61111]
[1730005641730,2.96253925,2482.6,2482.5,0.40331]
[1730005642001,2.96253925,2482.6,2482.5,3.61111]
[1730005644820,2.96253925,2482.6,2482.5,0.40331]
[1730005645327,2.96253925,2482.6,2482.5,3.61111]
[1730005649725,2.96253925,2482.6,2482.5,0.40331]
[1730005650029,2.96253925,2482.6,2482.5,3.61111]
[1730005651224,2.96253925,2482.6,2482.5,0.40331]
[1730005652538,2.96253925,2482.6,2482.5,3.61111]
[1730005654532,1.657,2482.6,2482.5,3.61111]
[1730005655136,2.96253925,2482.6,2482.5,3.61111]
[1730005656229,2.96253925,2482.6,2482.5,0.40331]
[1730005656430,2.96253925,2482.6,2482.5,4.66994435]
[1730005656936,2.96253925,2482.6,2482.5,1.46214435]
[1730005657637,2.96253925,2482.6,2482.5,4.66994435]
[1730005658732,2.96253925,2482.6,2482.5,1.46214435]
[1730005658931,2.96253925,2482.6,2482.5,4.66994435]
[1730005659127,2.96253925,2482.6,2482.5,4.26663435]
[1730005659334,3.36583925,2482.6,2482.5,4.26663435]
[1730005659632,2.96253925,2482.6,2482.5,4.66995435]
[1730005660939,2.96253925,2482.6,2482.5,1.46215435]
[1730005661241,2.96253925,2482.6,2482.5,4.66995435]
[1730005661833,2.96253925,2482.6,2482.5,1.46215435]
[1730005662044,2.96253925,2482.6,2482.5,4.66995435]
[1730005663745,3.36583925,2482.6,2482.5,4.26663435]
[1730005664240,2.96253925,2482.6,2482.5,4.66995435]
[1730005664442,2.96253925,2482.6,2482.5,3.61112]
[1730005664743,2.96253925,2482.6,2482.5,0.40332]
[1730005664948,2.96253925,2482.6,2482.5,3.61112]
[1730005667835,2.96253925,2482.6,2482.5,0.40332]
[1730005668050,2.96253925,2482.6,2482.5,3.61112]
[1730005668546,2.96253925,2482.6,2482.5,0.40332]
[1730005669052,2.96253925,2482.6,2482.5,3.61112]
[1730005670342,2.96253925,2482.6,2482.5,0.40332]
[1730005671455,2.96253925,2482.6,2482.5,3.61112]
[1730005671648,2.96253925,2482.6,2482.5,4.66995435]
[1730005672948,2.96253925,2482.6,2482.5,1.46215435]
[1730005673149,2.96253925,2482.6,2482.5,4.66995435]
[1730005673942,2.96253925,2482.6,2482.5,1.46215435]
[1730005674351,2.96253925,2482.6,2482.5,4.66995435]
[1730005675053,2.96253925,2482.6,2482.5,0.40332]
[1730005677454,2.96253925,2482.6,2482.4,1.46215435]
[1730005677651,1.30553925,2482.5,2482.4,1.46215435]
[1730005677850,1.30553925,2482.5,2482.4,3.03370505]
[1730005678593,1.30553925,2482.5,2482.4,6.24150505]
[1730005678984,1.30553925,2482.5,2482.4,3.03370505]
[1730005679348,1.30553925,2482.5,2482.4,6.24150505]
[1730005679857,1.74513925,2482.5,2482.4,6.24150505]
[1730005680363,1.74513925,2482.5,2482.4,6.2414433]
[1730005681055,1.74513925,2482.5,2482.4,3.0336433]
[1730005681443,1.74513925,2482.5,2482.4,6.2414433]
[1730005682248,1.74513925,2482.5,2482.4,4.66995435]
[1730005682741,1.74513925,2482.5,2482.4,4.26663435]
[1730005683444,2.14845925,2482.5,2482.4,4.26663435]
[1730005683642,5.77313925,2482.5,2482.2,1.05883435]
[1730005683955,1.30553925,2482.3,2482.2,1.05883435]
[1730005684544,1.30553925,2482.3,2482.2,0.40337]
[1730005684753,2.18353925,2482.3,2482.2,1.05883435]
[1730005685349,2.18353925,2482.3,2482.2,0.40337]
[1730005686048,2.18353925,2482.3,2482.1,4.26663435]
[1730005686254,1.71723925,2482.2,2482.1,4.67001435]
[1730005686753,1.71723925,2482.2,2482.1,0.40338]
[1730005687147,1.71723925,2482.2,2482.1,3.61118]
[1730005690864,1.71723925,2482.2,2482.1,0.40338]
[1730005691856,1.71723925,2482.2,2482.1,3.61118]
[1730005694455,1.71723925,2482.2,2482.1,0.40338]
[1730005694653,1.71723925,2482.2,2482.1,3.61118]
[1730005700061,1.71723925,2482.2,2482.1,3.2078]
[1730005700267,0.40339,2482.1,2481.8,3.6188]
[1730005700457,5.74603925,2482.2,2481.9,0.4034]
[1730005700458,1.2423,2482.0,2481.9,0.4034]
[1730005700659,1.6539,2482.0,2481.9,0.4034]
[1730005701795,2.95943925,2482.0,2481.9,0.4034]
[1730005703255,3.36284925,2482.0,2481.8,3.61123]
[1730005703465,1.75373925,2481.9,2481.8,3.61123]
[1730005704262,1.75373925,2481.9,2481.8,0.40343]
[1730005704460,1.75373925,2481.9,2481.8,3.61123]
[1730005704854,1.75373925,2481.9,2481.8,0.40343]
[1730005705061,1.75373925,2481.9,2481.8,3.61123]
[1730005707361,1.75373925,2481.9,2481.8,0.40343]
[1730005707864,1.75373925,2481.9,2481.8,3.61123]
[1730005709561,1.75373925,2481.9,2481.8,0.40343]
[1730005709963,1.75373925,2481.9,2481.8,3.61123]
[1730005711069,1.75373925,2481.9,2481.8,0.40343]
[1730005711370,1.75373925,2481.9,2481.8,3.61123]
[1730005711758,1.75373925,2481.9,2481.8,0.40343]
[1730005711972,1.75373925,2481.9,2481.8,3.61123]
[1730005713377,1.75373925,2481.9,2481.8,0.40343]
[1730005713970,1.75373925,2481.9,2481.8,3.61123]
[1730005714569,1.75373925,2481.9,2481.8,0.40343]
[1730005714769,1.75373925,2481.9,2481.8,3.61123]
[1730005716462,1.75373925,2481.9,2481.8,0.40343]
[1730005716889,1.75373925,2481.9,2481.8,3.61123]
[1730005717266,1.75373925,2481.9,2481.8,0.40343]
[1730005717969,1.75373925,2481.9,2481.8,3.61123]
[1730005719074,1.75373925,2481.9,2481.8,0.40343]
[1730005719270,1.75373925,2481.9,2481.8,3.61123]
[1730005720369,1.6539,2482.0,2481.9,0.40342]
[1730005720702,2.95943925,2482.0,2481.9,0.40342]
[1730005723088,3.38703925,2482.0,2481.9,0.40342]
[1730005729483,3.79043925,2482.0,2481.9,0.40342]
[1730005730973,3.2078,2482.4,2481.9,5.33433925]
[1730005730974,3.61114,2482.4,2481.9,5.33433925]
[1730005731174,1.67302,2482.5,2482.3,0.40335]
[1730005731375,2.12253925,2482.4,2482.3,0.40335]
[1730005731977,1.30553925,2482.4,2482.3,0.40335]
[1730005732177,2.12253925,2482.4,2482.3,0.40335]
[1730005735589,2.53323925,2482.4,2482.3,0.40335]
[1730005736882,2.53323925,2482.4,2482.3,3.61115]
[1730005739083,2.53323925,2482.4,2482.3,0.40335]
[1730005739780,2.53323925,2482.4,2482.3,3.61115]
[1730005741386,2.53323925,2482.4,2482.3,0.40335]
[1730005741691,2.53323925,2482.4,2482.3,3.61115]
[1730005744086,2.53323925,2482.4,2482.3,0.40335]
[1730005744389,2.53323925,2482.4,2482.3,3.61115]
[1730005745137,2.53323925,2482.4,2482.3,0.40335]
[1730005745341,2.53323925,2482.4,2482.3,3.61115]
[1730005746683,2.53323925,2482.4,2482.3,0.40335]
[1730005746886,2.53323925,2482.4,2482.3,3.61115]
[1730005747087,2.53323925,2482.4,2482.3,4.03075]
[1730005748586,2.53323925,2482.4,2482.3,3.61115]
[1730005749788,2.53323925,2482.4,2482.3,0.40335]
[1730005750092,2.53323925,2482.4,2482.3,3.61115]
[1730005750286,2.53323925,2482.4,2482.3,0.40335]
[1730005750490,2.53323925,2482.4,2482.3,3.61115]
[1730005750789,2.53323925,2482.4,2482.3,0.40335]
[1730005750983,2.53323925,2482.4,2482.3,3.61115]
[1730005751384,2.53323925,2482.4,2482.3,0.40335]
[1730005751584,2.53323925,2482.4,2482.3,3.61115]
[1730005752186,2.53323925,2482.4,2482.3,0.40335]
[1730005753291,2.53323925,2482.4,2482.3,3.61115]
[1730005753793,2.53323925,2482.4,2482.3,0.40335]
[1730005754088,2.53323925,2482.4,2482.3,3.61115]
[1730005757200,2.53323925,2482.4,2482.3,0.40335]
[1730005757702,2.53323925,2482.4,2482.3,3.61115]
[1730005762598,2.53323925,2482.4,2482.3,0.40335]
[1730005762804,2.53323925,2482.4,2482.3,3.61115]
[1730005764306,2.12253925,2482.4,2482.3,3.61115]
[1730005764504,2.12253925,2482.4,2482.3,0.40335]
[1730005764726,2.12253925,2482.4,2482.3,3.61115]
[1730005766810,2.12253925,2482.4,2482.3,0.40335]
[1730005767510,2.12253925,2482.4,2482.3,3.61115]
[1730005768807,2.12253925,2482.4,2482.3,0.40335]
[1730005769107,2.12253925,2482.4,2482.3,3.61115]
[1730005771215,2.12253925,2482.4,2482.3,0.40335]
[1730005772307,2.12253925,2482.4,2482.3,3.61115]
[1730005773313,2.12253925,2482.4,2482.3,0.40335]
[1730005773512,2.12253925,2482.4,2482.3,3.61115]
[1730005776114,0.441,2482.5,2482.4,0.40333]
[1730005776310,2.56353925,2482.5,2482.4,0.40333]
[1730005776511,1.258,2482.5,2482.4,0.40333]
[1730005776711,2.56353925,2482.5,2482.4,0.40333]
[1730005789622,2.96686925,2482.5,2482.3,4.66997435]
[1730005789927,2.96686925,2482.5,2482.3,3.61114]
[1730005792032,2.96686925,2482.5,2482.3,0.40334]
[1730005792227,2.96686925,2482.5,2482.4,0.40333]
[1730005793530,2.56353925,2482.5,2482.4,0.40333]
[1730005803123,2.56353925,2482.5,2482.3,1.46217435]
[1730005803124,2.96686925,2482.5,2482.3,1.46217435]
[1730005803334,1.30553925,2482.4,2482.3,0.40334]
[1730005806328,1.70886925,2482.4,2482.3,0.40334]
[1730005807141,1.30553925,2482.4,2482.3,0.40334]
[1730005811937,1.30553925,2482.4,2482.3,0.40335]
[1730005814038,1.30553925,2482.4,2482.1,4.26663435]
[1730005814238,0.4235,2482.3,2482.2,3.56470433]
[1730005814440,1.72903925,2482.3,2482.2,3.56470433]
[1730005819646,2.54603925,2482.3,2482.2,3.56470433]
[1730005821844,2.54603925,2482.3,2482.2,3.56468106]
[1730005826346,2.54603925,2482.3,2482.2,3.56473081]
[1730005826946,0.441,2482.5,2482.2,3.56473081]
[1730005826947,1.74653925,2482.5,2482.4,0.40333]
[1730005827146,2.56353925,2482.5,2482.4,0.40333]
[1730005835464,2.56353925,2482.5,2482.3,0.8545]
[1730005835465,2.96686925,2482.5,2482.3,0.40335]
[1730005835762,2.15836925,2482.4,2482.3,0.40335]
[1730005835966,2.18833925,2482.4,2482.3,0.40335]
[1730005837263,6.21713925,2482.4,2482.1,1.0591542]
[1730005837466,2.6110785,2482.2,2481.9,1.0591542]
[1730005837658,2.6110785,2482.2,2481.8,1.99337386]
[1730005837659,1.70893925,2482.0,2481.8,1.0591542]
[1730005837963,1.70893925,2482.0,2481.8,0.40343]
[1730005837964,2.55253925,2481.9,2481.8,0.40343]
[1730005838465,7.03163925,2481.9,2481.5,1.0591542]
[1730005838672,7.03163925,2481.9,2481.5,0.40348]
[1730005838673,1.30553925,2481.6,2481.5,0.40348]
[1730005838970,1.30553925,2481.6,2481.4,3.61128]
[1730005839162,1.30553925,2481.6,2481.0,2.6499231]
[1730005839163,0.40351,2481.4,2481.0,1.0591542]
[1730005839360,0.40351,2481.4,2481.0,0.40356]
[1730005839361,1.30553925,2481.1,2481.0,0.40356]
[1730005839664,1.70908925,2481.1,2480.9,3.2078]
[1730005839861,1.71343925,2481.0,2480.9,3.2078]
[1730005840363,6.14739925,2481.0,2480.9,3.2078]
[1730005840554,6.14739925,2481.0,2480.5,3.61143]
[1730005840555,5.74383925,2481.0,2480.5,3.61143]
[1730005840758,1.30553925,2480.6,2480.5,3.61143]
[1730005840961,2.12253925,2480.6,2480.5,3.61143]
[1730005842161,2.12253925,2480.6,2480.5,3.2078]
[1730005842562,2.12253925,2480.6,2480.5,3.61144]
[1730005842869,2.12253925,2480.6,2480.5,3.2078]
[1730005843465,2.12253925,2480.6,2480.5,3.61144]
[1730005846667,2.12253925,2480.6,2480.5,0.40364]
[1730005848070,1.25898,2480.9,2480.5,1.30553925]
[1730005848071,0.4283,2480.9,2480.5,1.30553925]
[1730005848287,1.73383925,2480.9,2480.8,0.40359]
[1730005848471,2.55083925,2480.9,2480.8,0.40359]
[1730005857273,2.55083925,2480.9,2480.7,0.4036]
[1730005857473,1.30553925,2480.8,2480.7,0.4036]
[1730005859572,3.2078,2481.2,2480.6,4.51333925]
[1730005859768,2.08185,2481.1,2480.9,0.40357]
[1730005860772,1.26485,2481.1,2480.9,0.40357]
[1730005860969,2.12253925,2481.0,2480.6,3.2078]
[1730005861282,1.22057,2481.0,2480.8,0.40359]
[1730005861732,0.817,2481.0,2480.9,0.40358]
[1730005862280,2.52609925,2481.0,2480.8,0.40358]
[1730005862475,1.70912925,2480.9,2480.7,0.40361]
[1730005862678,1.30553925,2480.8,2480.7,0.40361]
[1730005863281,1.30553925,2480.9,2480.8,0.40358]
[1730005867588,1.70911925,2480.9,2480.7,0.4036]
[1730005867773,1.30553925,2480.8,2480.7,0.4036]
[1730005869971,1.30553925,2480.9,2480.8,0.40359]
[1730005871071,1.30553925,2480.9,2480.6,3.2078]
[1730005871072,0.817,2481.0,2480.6,3.2078]
[1730005871384,0.817,2481.0,2480.9,0.40358]
[1730005872581,0.817,2481.0,2480.9,0.81308]
[1730005872781,2.12253925,2481.0,2480.9,0.81308]
[1730005874878,2.12253925,2481.0,2480.9,4.02088]
[1730005875274,0.8613,2481.1,2481.0,0.40356]
[1730005875275,2.16683925,2481.1,2481.0,0.40356]
[1730005875582,0.40352,2481.3,2481.2,0.40353]
[1730005875583,0.817,2481.3,2481.2,0.40353]
[1730005875781,2.12253925,2481.4,2481.3,0.40351]
[1730005875983,2.12253925,2481.4,2481.3,1.26861]
[1730005880288,2.12253925,2481.4,2481.3,0.82791]
[1730005883587,2.12253925,2481.4,2481.3,4.03571]
[1730005885889,2.12253925,2481.4,2481.3,0.82791]
[1730005886286,2.12253925,2481.4,2481.3,4.03571]
[1730005886779,2.12253925,2481.4,2481.3,0.82791]
[1730005886979,2.12253925,2481.4,2481.3,4.03571]
[1730005887389,2.12253925,2481.4,2481.3,3.61131]
[1730005889978,2.52603925,2481.4,2481.3,3.2078]
[1730005890183,6.55643925,2481.4,2481.3,3.2078]
[1730005892594,6.55643925,2481.4,2481.2,0.40352]
[1730005892595,6.55643925,2481.4,2481.2,3.61132]
[1730005892791,2.19673925,2481.3,2481.2,3.61132]
[1730005895203,2.19673925,2481.3,2481.2,0.40352]
[1730005895397,2.19673925,2481.3,2481.2,3.61132]
[1730005898399,0.8912,2481.3,2481.2,3.61132]
[1730005903812,0.8912,2481.3,2481.2,3.2078]
[1730005904112,0.8912,2481.3,2481.2,3.61129]
[1730005904305,1.30553925,2481.4,2481.2,3.2078]
[1730005904501,1.71573925,2481.5,2481.4,0.40346]